[Event "Titled Tuesday Blitz February 07 Early 2023"]
[White "Fedoseev, Vladimir"]
[Black "Jimenez, Joaquin"]
[WhiteFideId "24130737"]
[BlackFideId "109860"]
[WhiteElo "2680"]
[BlackElo "2195"]
[Result "1-0"]
[Round "04"]
[TimeControl "180+2"]
[Date "2023.02.07"]
[WhiteClock "0:00:07"]
[BlackClock "0:00:01"]

1. Nf3 {[%clk 0:02:59]}  Nf6 {[%clk 0:02:58]} 2. c4 {[%clk 0:02:58]}  e6 {[%clk 0:02:57]} 3. Nc3 {[%clk 0:02:55]}  d5 {[%clk 0:02:54]} 4. e3 {[%clk 0:02:54]}  Be7 {[%clk 0:02:47]} 5. b3 {[%clk 0:02:53]}  O-O {[%clk 0:02:45]} 6. Bb2 {[%clk 0:02:53]}  b6 {[%clk 0:02:41]} 7. cxd5 {[%clk 0:02:50]}  exd5 {[%clk 0:02:36]} 8. g4 {[%clk 0:02:50]}  c6 {[%clk 0:02:30]} 9. g5 {[%clk 0:02:49]}  Ne4 {[%clk 0:02:20]} 10. h4 {[%clk 0:02:50]}  Bg4 {[%clk 0:02:16]} 11. Be2 {[%clk 0:02:48]}  Nd7 {[%clk 0:02:07]} 12. Nd4 {[%clk 0:02:48]}  Bxe2 {[%clk 0:02:03]} 13. Qxe2 {[%clk 0:02:44]}  Ne5 {[%clk 0:01:45]} 14. O-O-O {[%clk 0:02:40]}  Bb4 {[%clk 0:01:30]} 15. Kb1 {[%clk 0:02:35]}  a5 {[%clk 0:01:23]} 16. f4 {[%clk 0:02:32]}  c5 {[%clk 0:01:20]} 17. Nxe4 {[%clk 0:02:28]}  cxd4 {[%clk 0:01:11]} 18. Ng3 {[%clk 0:02:00]}  Nc6 {[%clk 0:01:00]} 19. Nf5 {[%clk 0:01:59]}  a4 {[%clk 0:00:52]} 20. Qb5 {[%clk 0:01:52]}  Qc8 {[%clk 0:00:44]} 21. Nxd4 {[%clk 0:01:15]}  Nxd4 {[%clk 0:00:40]} 22. Bxd4 {[%clk 0:01:15]}  Bc5 {[%clk 0:00:34]} 23. Bxc5 {[%clk 0:01:04]}  bxc5 {[%clk 0:00:35]} 24. Rc1 {[%clk 0:01:00]}  axb3 {[%clk 0:00:35]} 25. axb3 {[%clk 0:00:55]}  Qf5+ {[%clk 0:00:34]} 26. Kb2 {[%clk 0:00:55]}  c4 {[%clk 0:00:32]} 27. Rc3 {[%clk 0:00:40]}  cxb3 {[%clk 0:00:20]} 28. Rxb3 {[%clk 0:00:37]}  Qe4 {[%clk 0:00:20]} 29. Rc1 {[%clk 0:00:36]}  d4 {[%clk 0:00:20]} 30. Rc4 {[%clk 0:00:29]}  Qh1 {[%clk 0:00:19]} 31. Rxd4 {[%clk 0:00:16]}  Rfc8 {[%clk 0:00:17]} 32. Rc4 {[%clk 0:00:12]}  Qa1+ {[%clk 0:00:17]} 33. Kc2 {[%clk 0:00:12]}  Ra2+ {[%clk 0:00:15]} 34. Kd3 {[%clk 0:00:12]}  Qf1+ {[%clk 0:00:14]} 35. Kd4 {[%clk 0:00:07]}  Rxd2+ {[%clk 0:00:14]} 36. Kc3 {[%clk 0:00:06]}  Qc1+ {[%clk 0:00:13]} 37. Kb4 {[%clk 0:00:05]}  Rxc4+ {[%clk 0:00:12]} 38. Qxc4 {[%clk 0:00:06]}  Qxc4+ {[%clk 0:00:13]} 39. Kxc4 {[%clk 0:00:06]}  Rd8 {[%clk 0:00:13]} 40. h5 {[%clk 0:00:06]}  h6 {[%clk 0:00:12]} 41. g6 {[%clk 0:00:06]}  fxg6 {[%clk 0:00:11]} 42. hxg6 {[%clk 0:00:06]}  Kf8 {[%clk 0:00:09]} 43. e4 {[%clk 0:00:07]}  Ke7 {[%clk 0:00:08]} 44. Rb7+ {[%clk 0:00:05]}  Kf6 {[%clk 0:00:08]} 45. Rb6+ {[%clk 0:00:05]}  Ke7 {[%clk 0:00:08]} 46. f5 {[%clk 0:00:06]}  Rg8 {[%clk 0:00:06]} 47. Kd5 {[%clk 0:00:05]}  h5 {[%clk 0:00:06]} 48. Ke5 {[%clk 0:00:06]}  h4 {[%clk 0:00:07]} 49. Rb7+ {[%clk 0:00:06]}  Kf8 {[%clk 0:00:07]} 50. Kf4 {[%clk 0:00:06]}  h3 {[%clk 0:00:05]} 51. Kg3 {[%clk 0:00:06]}  h2 {[%clk 0:00:04]} 52. Kxh2 {[%clk 0:00:06]}  Rh8+ {[%clk 0:00:05]} 53. Kg3 {[%clk 0:00:07]}  Rh1 {[%clk 0:00:05]} 54. Kf4 {[%clk 0:00:07]}  Rc1 {[%clk 0:00:03]} 55. Ke5 {[%clk 0:00:07]}  Rc6 {[%clk 0:00:01]} 56. Kd5 {[%clk 0:00:07]} 1-0


[Site "https://www.chess.com"]

[Event "Titled Tuesday Blitz February 07 Early 2023"]
[White "Kollars, Dmitrij"]
[Black "Martynov, Pavel"]
[WhiteFideId "12909572"]
[BlackFideId "4101260"]
[WhiteElo "2607"]
[BlackElo "2414"]
[Result "1/2-1/2"]
[Round "04"]
[TimeControl "180+2"]
[Date "2023.02.07"]
[WhiteClock "0:00:02"]
[BlackClock "0:00:05"]

1. e4 {[%clk 0:03:00]}  c5 {[%clk 0:02:57]} 2. Nf3 {[%clk 0:02:56]}  e6 {[%clk 0:02:57]} 3. g3 {[%clk 0:02:52]}  Nc6 {[%clk 0:02:29]} 4. Bg2 {[%clk 0:02:52]}  Qc7 {[%clk 0:02:27]} 5. O-O {[%clk 0:02:51]}  a6 {[%clk 0:02:27]} 6. Nc3 {[%clk 0:02:43]}  d6 {[%clk 0:02:21]} 7. d4 {[%clk 0:02:42]}  cxd4 {[%clk 0:02:18]} 8. Nxd4 {[%clk 0:02:43]}  Bd7 {[%clk 0:02:11]} 9. a4 {[%clk 0:02:40]}  Be7 {[%clk 0:02:11]} 10. Nxc6 {[%clk 0:02:33]}  bxc6 {[%clk 0:02:06]} 11. Bf4 {[%clk 0:02:31]}  e5 {[%clk 0:01:42]} 12. Be3 {[%clk 0:02:30]}  h5 {[%clk 0:01:42]} 13. h3 {[%clk 0:02:26]}  Be6 {[%clk 0:01:21]} 14. a5 {[%clk 0:02:23]}  Nf6 {[%clk 0:01:12]} 15. Bg5 {[%clk 0:02:21]}  Nd7 {[%clk 0:01:05]} 16. Bxe7 {[%clk 0:02:19]}  Kxe7 {[%clk 0:01:06]} 17. Qd2 {[%clk 0:02:19]}  f6 {[%clk 0:01:01]} 18. Nd1 {[%clk 0:02:16]}  h4 {[%clk 0:00:49]} 19. g4 {[%clk 0:02:11]}  g5 {[%clk 0:00:47]} 20. Ne3 {[%clk 0:02:11]}  Rhd8 {[%clk 0:00:47]} 21. Rfd1 {[%clk 0:02:11]}  Nf8 {[%clk 0:00:47]} 22. Nf5+ {[%clk 0:02:07]}  Bxf5 {[%clk 0:00:47]} 23. exf5 {[%clk 0:02:08]}  d5 {[%clk 0:00:47]} 24. c4 {[%clk 0:02:06]}  d4 {[%clk 0:00:36]} 25. b4 {[%clk 0:02:02]}  d3 {[%clk 0:00:31]} 26. Ra3 {[%clk 0:01:56]}  Rab8 {[%clk 0:00:28]} 27. c5 {[%clk 0:00:57]}  Rd4 {[%clk 0:00:27]} 28. Rxd3 {[%clk 0:00:57]}  Rbxb4 {[%clk 0:00:27]} 29. Qa2 {[%clk 0:00:50]}  Qd7 {[%clk 0:00:20]} 30. Rxd4 {[%clk 0:00:48]}  Rxd4 {[%clk 0:00:21]} 31. Rxd4 {[%clk 0:00:48]}  Qxd4 {[%clk 0:00:22]} 32. Qg8 {[%clk 0:00:41]}  Qxc5 {[%clk 0:00:16]} 33. Qg7+ {[%clk 0:00:41]}  Ke8 {[%clk 0:00:16]} 34. Qxf6 {[%clk 0:00:40]}  Qc1+ {[%clk 0:00:17]} 35. Bf1 {[%clk 0:00:38]}  Nd7 {[%clk 0:00:12]} 36. Qe6+ {[%clk 0:00:36]}  Kd8 {[%clk 0:00:12]} 37. f6 {[%clk 0:00:31]}  Qf4 {[%clk 0:00:12]} 38. f7 {[%clk 0:00:29]}  Kc7 {[%clk 0:00:10]} 39. Bxa6 {[%clk 0:00:26]}  Qc1+ {[%clk 0:00:09]} 40. Bf1 {[%clk 0:00:26]}  Qf4 {[%clk 0:00:08]} 41. a6 {[%clk 0:00:25]}  e4 {[%clk 0:00:08]} 42. a7 {[%clk 0:00:24]}  e3 {[%clk 0:00:09]} 43. Qxe3 {[%clk 0:00:14]}  Qxe3 {[%clk 0:00:09]} 44. fxe3 {[%clk 0:00:15]}  Kb7 {[%clk 0:00:10]} 45. Bg2 {[%clk 0:00:15]}  Kxa7 {[%clk 0:00:07]} 46. Bxc6 {[%clk 0:00:14]}  Nf8 {[%clk 0:00:08]} 47. Kf2 {[%clk 0:00:14]}  Kb6 {[%clk 0:00:09]} 48. Bd5 {[%clk 0:00:15]}  Kc5 {[%clk 0:00:10]} 49. e4 {[%clk 0:00:14]}  Kd6 {[%clk 0:00:11]} 50. Ke3 {[%clk 0:00:14]}  Ke5 {[%clk 0:00:12]} 51. Kd3 {[%clk 0:00:14]}  Ng6 {[%clk 0:00:12]} 52. Kc4 {[%clk 0:00:12]}  Kd6 {[%clk 0:00:13]} 53. Kd4 {[%clk 0:00:12]}  Ke7 {[%clk 0:00:13]} 54. e5 {[%clk 0:00:11]}  Nf4 {[%clk 0:00:14]} 55. Ke4 {[%clk 0:00:11]}  Nxh3 {[%clk 0:00:14]} 56. Kf5 {[%clk 0:00:12]}  Nf4 {[%clk 0:00:13]} 57. Bf3 {[%clk 0:00:10]}  Ne6 {[%clk 0:00:12]} 58. Bd5 {[%clk 0:00:07]}  Nf4 {[%clk 0:00:11]} 59. Be4 {[%clk 0:00:06]}  Ne6 {[%clk 0:00:09]} 60. Bh1 {[%clk 0:00:06]}  h3 {[%clk 0:00:09]} 61. Kg6 {[%clk 0:00:05]}  h2 {[%clk 0:00:06]} 62. Be4 {[%clk 0:00:05]}  Nf8+ {[%clk 0:00:05]} 63. Kg7 {[%clk 0:00:05]}  Ne6+ {[%clk 0:00:06]} 64. Kg8 {[%clk 0:00:05]}  Nf8 {[%clk 0:00:06]} 65. Bd5 {[%clk 0:00:06]}  Nd7 {[%clk 0:00:05]} 66. Bg2 {[%clk 0:00:05]}  Nf8 {[%clk 0:00:05]} 67. Bc6 {[%clk 0:00:06]}  Ne6 {[%clk 0:00:05]} 68. Bd5 {[%clk 0:00:06]}  Nf8 {[%clk 0:00:06]} 69. e6 {[%clk 0:00:06]}  Ng6 {[%clk 0:00:05]} 70. Kg7 {[%clk 0:00:06]}  Nf8 {[%clk 0:00:06]} 71. Kh6 {[%clk 0:00:06]}  Nxe6 {[%clk 0:00:06]} 72. Kg6 {[%clk 0:00:07]}  Nf8+ {[%clk 0:00:05]} 73. Kxg5 {[%clk 0:00:07]}  h1=Q {[%clk 0:00:05]} 74. Bxh1 {[%clk 0:00:06]}  Kxf7 {[%clk 0:00:06]} 75. Kh6 {[%clk 0:00:07]}  Kg8 {[%clk 0:00:03]} 76. Bd5+ {[%clk 0:00:06]}  Kh8 {[%clk 0:00:03]} 77. g5 {[%clk 0:00:07]}  Ng6 {[%clk 0:00:03]} 78. Bf7 {[%clk 0:00:06]}  Nf8 {[%clk 0:00:03]} 79. Be8 {[%clk 0:00:06]}  Ne6 {[%clk 0:00:03]} 80. g6 {[%clk 0:00:05]}  Ng7 {[%clk 0:00:04]} 81. Bd7 {[%clk 0:00:05]}  Kg8 {[%clk 0:00:03]} 82. Kg5 {[%clk 0:00:06]}  Kf8 {[%clk 0:00:03]} 83. Bg4 {[%clk 0:00:04]}  Kg8 {[%clk 0:00:03]} 84. Kf6 {[%clk 0:00:04]}  Kf8 {[%clk 0:00:04]} 85. Bd7 {[%clk 0:00:03]}  Kg8 {[%clk 0:00:04]} 86. Ke7 {[%clk 0:00:04]}  Nh5 {[%clk 0:00:04]} 87. Bg4 {[%clk 0:00:04]}  Nf4 {[%clk 0:00:04]} 88. Kf6 {[%clk 0:00:02]}  Nxg6 {[%clk 0:00:05]} 1/2-1/2


[Site "https://www.chess.com"]

[Event "Titled Tuesday Blitz February 07 Early 2023"]
[White "Korobov, Anton"]
[Black "Djokovic, Nebojsa"]
[WhiteFideId "14105730"]
[BlackFideId "938300"]
[WhiteElo "2664"]
[BlackElo "2119"]
[Result "1-0"]
[Round "04"]
[TimeControl "180+2"]
[Date "2023.02.07"]
[WhiteClock "0:00:14"]
[BlackClock "0:00:03"]

1. d4 {[%clk 0:03:00]}  e6 {[%clk 0:03:00]} 2. c4 {[%clk 0:03:00]}  Nf6 {[%clk 0:03:00]} 3. Nf3 {[%clk 0:03:00]}  Bb4+ {[%clk 0:03:00]} 4. Nbd2 {[%clk 0:02:59]}  O-O {[%clk 0:03:00]} 5. a3 {[%clk 0:02:55]}  Be7 {[%clk 0:03:01]} 6. b4 {[%clk 0:02:48]}  a5 {[%clk 0:02:51]} 7. b5 {[%clk 0:02:48]}  d5 {[%clk 0:02:29]} 8. Bb2 {[%clk 0:02:46]}  a4 {[%clk 0:02:27]} 9. e3 {[%clk 0:02:44]}  Bd7 {[%clk 0:02:24]} 10. Rc1 {[%clk 0:02:22]}  dxc4 {[%clk 0:02:10]} 11. Bxc4 {[%clk 0:02:20]}  Ra5 {[%clk 0:02:05]} 12. Ne5 {[%clk 0:01:53]}  Qe8 {[%clk 0:01:43]} 13. Nxd7 {[%clk 0:01:47]}  Nbxd7 {[%clk 0:01:44]} 14. O-O {[%clk 0:01:44]}  Bd6 {[%clk 0:01:36]} 15. Bd3 {[%clk 0:01:38]}  Nb6 {[%clk 0:01:35]} 16. e4 {[%clk 0:01:23]}  e5 {[%clk 0:01:35]} 17. Nf3 {[%clk 0:01:15]}  exd4 {[%clk 0:01:26]} 18. e5 {[%clk 0:01:13]}  Bxe5 {[%clk 0:01:23]} 19. Re1 {[%clk 0:01:13]}  Nfd7 {[%clk 0:01:21]} 20. Bxd4 {[%clk 0:01:09]}  f6 {[%clk 0:01:18]} 21. Rxc7 {[%clk 0:01:06]}  Bxc7 {[%clk 0:00:54]} 22. Rxe8 {[%clk 0:01:07]}  Rxe8 {[%clk 0:00:55]} 23. Qc2 {[%clk 0:01:06]}  Bd6 {[%clk 0:00:50]} 24. Bxh7+ {[%clk 0:01:06]}  Kf8 {[%clk 0:00:42]} 25. h4 {[%clk 0:01:06]}  Rxb5 {[%clk 0:00:39]} 26. Bg6 {[%clk 0:00:58]}  Rc8 {[%clk 0:00:36]} 27. Qd2 {[%clk 0:00:48]}  Rd5 {[%clk 0:00:28]} 28. g3 {[%clk 0:00:44]}  Bc5 {[%clk 0:00:21]} 29. Qe2 {[%clk 0:00:39]}  Rd6 {[%clk 0:00:17]} 30. Bb2 {[%clk 0:00:24]}  Nc4 {[%clk 0:00:13]} 31. Kg2 {[%clk 0:00:24]}  Nxb2 {[%clk 0:00:13]} 32. Qxb2 {[%clk 0:00:25]}  Nb6 {[%clk 0:00:06]} 33. h5 {[%clk 0:00:23]}  Rd7 {[%clk 0:00:05]} 34. Bf5 {[%clk 0:00:23]}  Rcd8 {[%clk 0:00:03]} 35. Bxd7 {[%clk 0:00:22]}  Rxd7 {[%clk 0:00:04]} 36. Qb5 {[%clk 0:00:23]}  Rc7 {[%clk 0:00:04]} 37. Nh4 {[%clk 0:00:23]}  Kf7 {[%clk 0:00:03]} 38. Ng6 {[%clk 0:00:24]}  Ke6 {[%clk 0:00:02]} 39. Qe2+ {[%clk 0:00:23]}  Kd5 {[%clk 0:00:03]} 40. Nf4+ {[%clk 0:00:23]}  Kc6 {[%clk 0:00:03]} 41. Ne6 {[%clk 0:00:23]}  Re7 {[%clk 0:00:03]} 42. Qf3+ {[%clk 0:00:23]}  Kd6 {[%clk 0:00:03]} 43. Nxc5 {[%clk 0:00:18]}  Kxc5 {[%clk 0:00:04]} 44. Qc3+ {[%clk 0:00:18]}  Kd5 {[%clk 0:00:02]} 45. Qb4 {[%clk 0:00:19]}  Re6 {[%clk 0:00:02]} 46. Qb5+ {[%clk 0:00:19]}  Kd4 {[%clk 0:00:02]} 47. g4 {[%clk 0:00:20]}  Rc6 {[%clk 0:00:02]} 48. Kg3 {[%clk 0:00:20]}  Rc3+ {[%clk 0:00:02]} 49. f3 {[%clk 0:00:20]}  Rc6 {[%clk 0:00:03]} 50. Kh4 {[%clk 0:00:18]}  Ke3 {[%clk 0:00:03]} 51. Kg3 {[%clk 0:00:16]}  Kd4 {[%clk 0:00:02]} 52. f4 {[%clk 0:00:17]}  Rc3+ {[%clk 0:00:02]} 53. Kh4 {[%clk 0:00:17]}  Rc6 {[%clk 0:00:03]} 54. g5 {[%clk 0:00:17]}  fxg5+ {[%clk 0:00:04]} 55. fxg5 {[%clk 0:00:18]}  Nd5 {[%clk 0:00:03]} 56. Qxb7 {[%clk 0:00:18]}  Rc4 {[%clk 0:00:04]} 57. Qxg7+ {[%clk 0:00:18]}  Ke3+ {[%clk 0:00:04]} 58. Kg3 {[%clk 0:00:18]}  Nf4 {[%clk 0:00:04]} 59. Qe5+ {[%clk 0:00:18]}  Re4 {[%clk 0:00:05]} 60. Qc5+ {[%clk 0:00:18]}  Ke2 {[%clk 0:00:04]} 61. g6 {[%clk 0:00:17]}  Nd3 {[%clk 0:00:02]} 62. Qf5 {[%clk 0:00:16]}  Re3+ {[%clk 0:00:02]} 63. Kg4 {[%clk 0:00:16]}  Ne5+ {[%clk 0:00:02]} 64. Kg5 {[%clk 0:00:17]}  Rg3+ {[%clk 0:00:02]} 65. Kh6 {[%clk 0:00:17]}  Ng4+ {[%clk 0:00:02]} 66. Kh7 {[%clk 0:00:17]}  Ne3 {[%clk 0:00:03]} 67. Qe4 {[%clk 0:00:17]}  Rg4 {[%clk 0:00:03]} 68. Qe6 {[%clk 0:00:16]}  Rc4 {[%clk 0:00:03]} 69. g7 {[%clk 0:00:16]}  Rc7 {[%clk 0:00:03]} 70. Kh8 {[%clk 0:00:17]}  Kd3 {[%clk 0:00:01]} 71. g8=Q {[%clk 0:00:17]}  Rc4 {[%clk 0:00:01]} 72. h6 {[%clk 0:00:16]}  Rd4 {[%clk 0:00:01]} 73. h7 {[%clk 0:00:16]}  Rh4 {[%clk 0:00:02]} 74. Qgg6+ {[%clk 0:00:16]}  Ke2 {[%clk 0:00:02]} 75. Kg8 {[%clk 0:00:17]}  Rd4 {[%clk 0:00:01]} 76. h8=Q {[%clk 0:00:15]}  Rd8+ {[%clk 0:00:02]} 77. Kh7 {[%clk 0:00:15]}  Rd2 {[%clk 0:00:02]} 78. Qg2+ {[%clk 0:00:14]}  Kd1 {[%clk 0:00:01]} 79. Qa1+ {[%clk 0:00:15]}  Kc2 {[%clk 0:00:01]} 80. Qea2+ {[%clk 0:00:15]}  Kd3 {[%clk 0:00:02]} 81. Qg6+ {[%clk 0:00:15]}  Ke2 {[%clk 0:00:02]} 82. Qa6+ {[%clk 0:00:13]}  Kf3 {[%clk 0:00:02]} 83. Qxd2 {[%clk 0:00:13]}  Nf5 {[%clk 0:00:02]} 84. Q1f1+ {[%clk 0:00:13]}  Kg4 {[%clk 0:00:02]} 85. Qdg2+ {[%clk 0:00:13]}  Kh5 {[%clk 0:00:03]} 86. Qfh1+ {[%clk 0:00:13]}  Nh4 {[%clk 0:00:03]} 87. Qa5# {[%clk 0:00:14]} 1-0


[Site "https://www.chess.com"]

[Event "Titled Tuesday Blitz February 07 Early 2023"]
[White "Madaminov, Mukhiddin"]
[Black "Mohamed Anees M"]
[WhiteFideId "14210703"]
[BlackFideId "35065815"]
[WhiteElo "2422"]
[BlackElo "2315"]
[Result "1-0"]
[Round "04"]
[TimeControl "180+2"]
[Date "2023.02.07"]
[WhiteClock "0:00:03"]
[BlackClock "0:00:03"]

1. d4 {[%clk 0:03:00]}  Nf6 {[%clk 0:02:59]} 2. Nc3 {[%clk 0:03:01]}  d5 {[%clk 0:02:59]} 3. Bf4 {[%clk 0:03:01]}  e6 {[%clk 0:02:59]} 4. Nb5 {[%clk 0:03:01]}  Na6 {[%clk 0:02:59]} 5. e3 {[%clk 0:03:02]}  Be7 {[%clk 0:02:59]} 6. Nf3 {[%clk 0:03:02]}  O-O {[%clk 0:02:59]} 7. Be2 {[%clk 0:03:02]}  c6 {[%clk 0:03:00]} 8. Nc3 {[%clk 0:03:02]}  c5 {[%clk 0:03:00]} 9. Nb5 {[%clk 0:03:02]}  Bd7 {[%clk 0:02:50]} 10. a4 {[%clk 0:03:01]}  Ne4 {[%clk 0:02:46]} 11. c3 {[%clk 0:02:48]}  c4 {[%clk 0:02:23]} 12. Nd2 {[%clk 0:02:45]}  Nxd2 {[%clk 0:02:14]} 13. Qxd2 {[%clk 0:02:46]}  Bxb5 {[%clk 0:02:11]} 14. axb5 {[%clk 0:02:44]}  Nc7 {[%clk 0:02:11]} 15. b3 {[%clk 0:02:37]}  Nxb5 {[%clk 0:02:05]} 16. bxc4 {[%clk 0:02:35]}  dxc4 {[%clk 0:02:06]} 17. Bxc4 {[%clk 0:02:36]}  Nd6 {[%clk 0:02:07]} 18. Bd3 {[%clk 0:02:37]}  a6 {[%clk 0:02:01]} 19. c4 {[%clk 0:02:33]}  Rc8 {[%clk 0:01:44]} 20. c5 {[%clk 0:02:31]}  Nf5 {[%clk 0:01:45]} 21. O-O {[%clk 0:02:27]}  Qd7 {[%clk 0:01:37]} 22. Rfb1 {[%clk 0:02:24]}  Rfd8 {[%clk 0:01:21]} 23. Qe2 {[%clk 0:02:00]}  Nxd4 {[%clk 0:01:08]} 24. exd4 {[%clk 0:02:00]}  Qxd4 {[%clk 0:01:09]} 25. Be4 {[%clk 0:02:00]}  Bxc5 {[%clk 0:01:02]} 26. Be5 {[%clk 0:01:58]}  Qd7 {[%clk 0:00:51]} 27. Rxb7 {[%clk 0:01:54]}  Qd2 {[%clk 0:00:47]} 28. Bxh7+ {[%clk 0:01:49]}  Kf8 {[%clk 0:00:47]} 29. Qf3 {[%clk 0:01:46]}  Bxf2+ {[%clk 0:00:41]} 30. Qxf2 {[%clk 0:01:37]}  Rc1+ {[%clk 0:00:40]} 31. Rxc1 {[%clk 0:01:37]}  Qxc1+ {[%clk 0:00:40]} 32. Qf1 {[%clk 0:01:38]}  Rd1 {[%clk 0:00:37]} 33. Rxf7+ {[%clk 0:01:18]}  Ke8 {[%clk 0:00:37]} 34. Bg6 {[%clk 0:01:19]}  Kd8 {[%clk 0:00:31]} 35. Rf8+ {[%clk 0:01:10]}  Kd7 {[%clk 0:00:29]} 36. Rf7+ {[%clk 0:01:04]}  Kd8 {[%clk 0:00:29]} 37. Bxg7 {[%clk 0:00:13]}  Qc5+ {[%clk 0:00:13]} 38. Kh1 {[%clk 0:00:12]}  Rxf1+ {[%clk 0:00:12]} 39. Rxf1 {[%clk 0:00:13]}  a5 {[%clk 0:00:12]} 40. h4 {[%clk 0:00:12]}  Qc4 {[%clk 0:00:10]} 41. Bf6+ {[%clk 0:00:11]}  Kd7 {[%clk 0:00:09]} 42. Rd1+ {[%clk 0:00:11]}  Kc7 {[%clk 0:00:09]} 43. h5 {[%clk 0:00:12]}  Qe2 {[%clk 0:00:08]} 44. Rc1+ {[%clk 0:00:12]}  Kd6 {[%clk 0:00:08]} 45. Bh4 {[%clk 0:00:09]}  Qd2 {[%clk 0:00:07]} 46. Bg3+ {[%clk 0:00:09]}  Kd7 {[%clk 0:00:04]} 47. Ra1 {[%clk 0:00:08]}  a4 {[%clk 0:00:04]} 48. Kh2 {[%clk 0:00:02]}  Qd4 {[%clk 0:00:03]} 49. Ra2 {[%clk 0:00:02]}  Qc4 {[%clk 0:00:03]} 50. Rd2+ {[%clk 0:00:01]}  Ke7 {[%clk 0:00:03]} 51. Rc2 {[%clk 0:00:02]}  Qd4 {[%clk 0:00:03]} 52. Rc7+ {[%clk 0:00:03]}  Kf6 {[%clk 0:00:03]} 53. Rf7+ {[%clk 0:00:03]}  Kg5 {[%clk 0:00:04]} 54. Bf4+ {[%clk 0:00:04]}  Kg4 {[%clk 0:00:04]} 55. Bg3 {[%clk 0:00:04]}  Kg5 {[%clk 0:00:04]} 56. Rf4 {[%clk 0:00:03]}  Qd5 {[%clk 0:00:03]} 57. Rxa4 {[%clk 0:00:03]}  Kh6 {[%clk 0:00:03]} 58. Re4 {[%clk 0:00:03]} 1-0


[Site "https://www.chess.com"]

[Event "Titled Tuesday Blitz February 07 Early 2023"]
[White "Krzyzanowski, Marcin"]
[Black "Maksimenko, Viktor"]
[WhiteFideId "1132199"]
[BlackFideId "13710478"]
[WhiteElo "2512"]
[BlackElo "2196"]
[Result "1-0"]
[Round "04"]
[TimeControl "180+2"]
[Date "2023.02.07"]
[WhiteClock "0:00:03"]
[BlackClock "0:00:02"]

1. Nf3 {[%clk 0:02:57]}  d5 {[%clk 0:02:59]} 2. g3 {[%clk 0:02:48]}  Nd7 {[%clk 0:02:58]} 3. Bg2 {[%clk 0:02:48]}  e5 {[%clk 0:02:58]} 4. O-O {[%clk 0:02:46]}  Ngf6 {[%clk 0:02:59]} 5. c4 {[%clk 0:02:44]}  c6 {[%clk 0:02:58]} 6. cxd5 {[%clk 0:02:44]}  cxd5 {[%clk 0:02:59]} 7. d3 {[%clk 0:02:43]}  Bd6 {[%clk 0:02:58]} 8. Nc3 {[%clk 0:02:35]}  O-O {[%clk 0:02:56]} 9. e4 {[%clk 0:02:26]}  dxe4 {[%clk 0:02:38]} 10. dxe4 {[%clk 0:02:27]}  Nc5 {[%clk 0:02:37]} 11. Bg5 {[%clk 0:02:17]}  h6 {[%clk 0:02:31]} 12. Bxf6 {[%clk 0:02:07]}  Qxf6 {[%clk 0:02:32]} 13. Nd5 {[%clk 0:02:07]}  Qd8 {[%clk 0:02:31]} 14. Nd2 {[%clk 0:02:08]}  Ne6 {[%clk 0:02:21]} 15. Nc4 {[%clk 0:02:06]}  Nd4 {[%clk 0:02:21]} 16. f4 {[%clk 0:01:57]}  Be6 {[%clk 0:02:10]} 17. fxe5 {[%clk 0:01:53]}  Bc5 {[%clk 0:02:09]} 18. Kh1 {[%clk 0:01:52]}  b5 {[%clk 0:02:08]} 19. Nd6 {[%clk 0:01:46]}  a6 {[%clk 0:01:57]} 20. Rc1 {[%clk 0:01:37]}  Ba7 {[%clk 0:01:39]} 21. Nc7 {[%clk 0:01:33]}  Qg5 {[%clk 0:01:32]} 22. Nxa8 {[%clk 0:01:29]}  Rxa8 {[%clk 0:01:33]} 23. Rc7 {[%clk 0:01:23]}  Qxe5 {[%clk 0:01:32]} 24. Rcxf7 {[%clk 0:01:07]}  Qxd6 {[%clk 0:01:23]} 25. e5 {[%clk 0:01:08]}  Qd8 {[%clk 0:01:12]} 26. Qh5 {[%clk 0:00:42]}  Bd5 {[%clk 0:00:59]} 27. Rf8+ {[%clk 0:00:33]}  Qxf8 {[%clk 0:00:54]} 28. Bxd5+ {[%clk 0:00:29]}  Kh8 {[%clk 0:00:54]} 29. Rxf8+ {[%clk 0:00:29]}  Rxf8 {[%clk 0:00:55]} 30. e6 {[%clk 0:00:22]}  Nf5 {[%clk 0:00:51]} 31. Qf3 {[%clk 0:00:08]}  Bc5 {[%clk 0:00:50]} 32. e7 {[%clk 0:00:04]}  Bxe7 {[%clk 0:00:48]} 33. Qe4 {[%clk 0:00:03]}  Bc5 {[%clk 0:00:45]} 34. Bb3 {[%clk 0:00:02]}  Ne3 {[%clk 0:00:44]} 35. h4 {[%clk 0:00:02]}  Nf1 {[%clk 0:00:40]} 36. Kg2 {[%clk 0:00:01]}  Ne3+ {[%clk 0:00:34]} 37. Kh3 {[%clk 0:00:01]}  Ba7 {[%clk 0:00:14]} 38. Bc2 {[%clk 0:00:01]}  Nxc2 {[%clk 0:00:14]} 39. Qxc2 {[%clk 0:00:02]}  Bd4 {[%clk 0:00:15]} 40. Qc6 {[%clk 0:00:02]}  Bxb2 {[%clk 0:00:14]} 41. Qxa6 {[%clk 0:00:03]}  b4 {[%clk 0:00:14]} 42. Qd6 {[%clk 0:00:03]}  Ra8 {[%clk 0:00:11]} 43. Qxb4 {[%clk 0:00:03]}  Bf6 {[%clk 0:00:11]} 44. Qb3 {[%clk 0:00:04]}  Be7 {[%clk 0:00:10]} 45. a4 {[%clk 0:00:04]}  Bd6 {[%clk 0:00:09]} 46. Qd5 {[%clk 0:00:04]}  Ra6 {[%clk 0:00:08]} 47. Qb5 {[%clk 0:00:05]}  Ra8 {[%clk 0:00:05]} 48. Qc6 {[%clk 0:00:04]}  Rd8 {[%clk 0:00:04]} 49. a5 {[%clk 0:00:05]}  Bb8 {[%clk 0:00:04]} 50. a6 {[%clk 0:00:05]}  Rf8 {[%clk 0:00:02]} 51. Qb7 {[%clk 0:00:04]}  Rg8 {[%clk 0:00:02]} 52. a7 {[%clk 0:00:04]}  Bxa7 {[%clk 0:00:03]} 53. Qxa7 {[%clk 0:00:05]}  Rf8 {[%clk 0:00:04]} 54. Kg4 {[%clk 0:00:06]}  Rg8 {[%clk 0:00:05]} 55. Kh5 {[%clk 0:00:06]}  Kh7 {[%clk 0:00:05]} 56. Qf7 {[%clk 0:00:05]}  Rd8 {[%clk 0:00:04]} 57. Qf5+ {[%clk 0:00:05]}  Kh8 {[%clk 0:00:05]} 58. Qe5 {[%clk 0:00:05]}  Kh7 {[%clk 0:00:04]} 59. Qe7 {[%clk 0:00:03]}  Rd4 {[%clk 0:00:03]} 60. Qf7 {[%clk 0:00:02]}  Rd6 {[%clk 0:00:02]} 61. g4 {[%clk 0:00:02]}  Rf6 {[%clk 0:00:01]} 62. Qe7 {[%clk 0:00:01]}  Kh8 {[%clk 0:00:01]} 63. g5 {[%clk 0:00:01]}  hxg5 {[%clk 0:00:02]} 64. hxg5 {[%clk 0:00:01]}  Ra6 {[%clk 0:00:02]} 65. Qe8+ {[%clk 0:00:01]}  Kh7 {[%clk 0:00:02]} 66. g6+ {[%clk 0:00:02]}  Rxg6 {[%clk 0:00:02]} 67. Qxg6+ {[%clk 0:00:03]} 1-0


[Site "https://www.chess.com"]